bitfinex-derivatives/quotes_SOLF0:USTF0_20230404
["timestamp","ask_amount","ask_price","bid_price","bid_amount"]
[1680643308201,0.06575657,20.986,20.972,100.0]
[1680643308404,0.06575657,20.986,20.973,45.8299]
[1680643321010,0.06575657,20.986,20.974,128.12919986]
[1680643324517,0.06575657,20.986,20.973,45.8299]
[1680643326717,143.0,20.985,20.973,45.8299]
[1680643327014,143.0,20.985,20.964,47.355]
[1680643327213,143.0,20.985,20.963,14.32984019]
[1680643327214,0.0711515,20.982,20.965,128.15595695]
[1680643327416,0.0711515,20.982,20.966,128.15595695]
[1680643327614,0.0711515,20.982,20.963,14.32984019]
[1680643327615,0.0711515,20.982,20.967,47.355]
[1680643327815,0.0711515,20.982,20.968,128.15595695]
[1680643335225,100.0,21.006,20.971,100.0]
[1680643335528,45.3379,21.002,20.972,128.15595695]
[1680643335820,1.75147417,21.001,20.972,271.15595695]
[1680643336017,1.75147417,21.001,20.974,143.0]
[1680643336215,1.75147417,21.001,20.971,100.0]
[1680643336216,0.06829108,20.995,20.98,0.07145756]
[1680643336523,0.0646047,20.995,20.981,100.0]
[1680643336724,0.0646047,20.995,20.982,128.15595695]
[1680643337114,0.0646047,20.995,20.983,128.15595695]
[1680643337420,0.0646047,20.995,20.984,128.15595695]
[1680643337619,0.0646047,20.995,20.985,128.15595695]
[1680643337820,0.0646047,20.995,20.981,100.0]
[1680643338018,0.0646047,20.995,20.982,128.05881718]
[1680643338222,1.75079796,21.009,20.982,128.05881718]
[1680643338519,1.75079796,21.008,20.982,128.05881718]
[1680643338720,1.75079796,21.007,20.982,128.05881718]
[1680643338913,1.75079796,21.006,20.982,128.05881718]
[1680643339113,1.75079796,21.005,20.987,0.06887058]
[1680643339317,0.06247821,21.001,20.987,0.06887058]
[1680643339514,0.06698661,21.001,20.987,0.06818939]
[1680643345624,0.06698661,21.001,20.987,143.06818939]
[1680643345825,0.06698661,21.001,20.989,143.0]
[1680643347726,0.06698661,21.001,20.988,47.345]
[1680643349021,0.06698661,21.001,20.988,190.345]
[1680643351127,0.06698661,21.001,20.988,47.345]
[1680643368638,0.06698661,21.001,20.987,0.06818939]
[1680643368945,143.06698661,21.001,20.987,0.06818939]
[1680643369146,1.75064203,21.0,20.987,0.06818939]
[1680643388862,14.58352927,21.001,20.987,0.06818939]
[1680643390264,0.06698661,21.001,20.987,0.06818939]
[1680643438205,0.06698661,21.001,20.987,143.06818939]
[1680643438507,0.06698661,21.001,20.988,271.04301647]
[1680643438706,0.06698661,21.001,20.989,128.04301647]
[1680643439407,0.06698661,21.001,20.987,0.06818939]
[1680643439707,0.06698661,21.001,20.987,143.06818939]
[1680643439906,0.06698661,21.001,20.988,271.04301647]
[1680643440108,0.06698661,21.001,20.989,128.04301647]
[1680643440607,0.06698661,21.001,20.987,0.06818939]
[1680643440608,0.06698661,21.001,20.99,128.04301647]
[1680643440805,0.06698661,21.001,20.987,0.06818939]
[1680643441006,0.06698661,21.001,20.987,128.1095245]
[1680643441208,0.06698661,21.001,20.988,128.04133511]
[1680643441399,0.06698661,21.001,20.987,0.06818939]
[1680643442908,0.06698661,21.001,20.987,128.1095245]
[1680643444011,0.06698661,21.001,20.988,128.04133511]
[1680643444211,0.06698661,21.001,20.989,128.04133511]
[1680643444410,0.06698661,21.001,20.99,128.04133511]
[1680643444610,0.06698661,21.001,20.987,0.06818939]
[1680643444810,0.06698661,21.001,20.987,128.10940294]
[1680643445911,0.06698661,21.001,20.988,128.04121355]
[1680643446110,0.06698661,21.001,20.989,128.04121355]
[1680643446310,0.06698661,21.001,20.99,128.04121355]
[1680643446504,0.06698661,21.001,20.987,0.06818939]
[1680643446708,0.06698661,21.001,20.987,128.10959148]
[1680643447408,0.06698661,21.001,20.988,128.04140209]
[1680643447611,45.1178,21.011,21.0,100.0]
[1680643447813,45.1178,21.011,21.001,128.04140209]
[1680643448916,45.1178,21.011,20.999,0.06753091]
[1680643448917,45.1178,21.011,21.002,128.04140209]
[1680643449115,45.1178,21.011,20.999,0.06753091]
[1680643452512,0.06549152,21.013,20.999,0.06753091]
[1680643452720,0.06549152,21.013,21.0,100.0]
[1680643452919,0.06549152,21.013,21.001,127.99421051]
[1680643453413,0.06549152,21.013,20.999,0.06753091]
[1680643453919,0.06549152,21.013,21.0,100.0]
[1680643454112,0.06549152,21.013,21.001,127.97388302]
[1680643454317,0.06549152,21.013,20.999,0.06753091]
[1680643465232,0.06549152,21.013,20.999,14.52572006]
[1680643465528,0.06549152,21.013,20.999,0.06753091]
[1680643471430,0.06549152,21.013,21.0,100.0]
[1680643474036,0.06549152,21.013,20.999,0.06753091]
[1680643474336,0.06549152,21.013,21.0,100.0]
[1680643476238,0.06549152,21.013,21.0,144.6598]
[1680643483044,0.06549152,21.013,21.001,143.0]
[1680643483643,0.06549152,21.013,21.0,144.6598]
[1680643483945,0.06549152,21.013,21.0,287.6598]
[1680643486647,0.06549152,21.013,21.0,44.6598]
[1680643486944,0.06549152,21.013,21.0,144.6598]
[1680643487145,0.06549152,21.013,21.0,100.0]
[1680643488351,0.06549152,21.013,21.0,145.9913]
[1680643490050,0.06549152,21.013,21.0,45.9913]
[1680643514961,0.06549152,21.013,21.001,127.97253123]
[1680643526771,0.06549152,21.013,21.002,127.97253123]
[1680643526965,0.06549152,21.013,21.003,127.97253123]
[1680643527169,0.06549152,21.013,20.999,0.06753091]
[1680643554194,0.06549152,21.013,20.999,271.04480888]
[1680643554393,0.06549152,21.013,21.0,127.97727797]
[1680643555392,0.06549152,21.013,21.001,127.97727797]
[1680643555592,0.06549152,21.013,21.002,127.97727797]
[1680643555893,0.06549152,21.013,21.003,127.97727797]
[1680643556087,0.06549152,21.013,21.004,127.97727797]
[1680643556288,0.06549152,21.013,20.999,143.06753091]
[1680643556493,0.06549152,21.013,21.0,127.97500172]
[1680643556688,0.06549152,21.013,21.001,127.97500172]
[1680643556887,0.06549152,21.013,21.002,127.97500172]
[1680643557086,0.06549152,21.013,20.999,143.06753091]
[1680643557087,0.06549152,21.013,21.003,127.97500172]
[1680643557395,0.06549152,21.013,21.004,127.97500172]
[1680643557694,0.06549152,21.013,20.999,0.06753091]
[1680643557897,0.06549152,21.013,20.999,271.04244648]
[1680643558086,0.06549152,21.013,21.0,127.97491557]
[1680643559398,0.06549152,21.013,20.999,0.06753091]
[1680643559399,0.06549152,21.013,21.001,127.97491557]
[1680643559700,0.06549152,21.013,21.002,127.97491557]
[1680643559900,0.06549152,21.013,21.003,127.97491557]
[1680643560198,0.06549152,21.013,21.004,127.97491557]
[1680643560399,0.06549152,21.013,21.005,127.97491557]
[1680643560698,0.06549152,21.013,20.999,0.06753091]
[1680643560997,0.06549152,21.013,20.999,271.04108657]
[1680643561191,0.06549152,21.013,21.0,127.97355566]
[1680643562496,0.06549152,21.013,21.001,127.97355566]
[1680643562699,0.06549152,21.013,21.002,127.97355566]
[1680643562900,0.06549152,21.013,21.003,127.97355566]
[1680643563200,0.06549152,21.013,21.004,127.97355566]
[1680643563398,0.06549152,21.013,21.005,127.97355566]
[1680643563698,0.06549152,21.013,20.999,0.06753091]
[1680643563897,0.06549152,21.013,20.999,128.04155269]
[1680643580901,0.06549152,21.013,21.0,127.97402178]
[1680643581103,0.06549152,21.013,21.001,127.97402178]
[1680643581402,0.06549152,21.013,21.002,127.97402178]
[1680643581701,0.06549152,21.013,21.003,127.97402178]
[1680643581896,0.06549152,21.013,21.004,127.97402178]
[1680643582103,0.06549152,21.013,21.005,127.97402178]
[1680643582302,0.06549152,21.013,20.999,0.06753091]
[1680643587406,0.06549152,21.013,20.999,142.86753091]
[1680643587607,0.06549152,21.013,21.0,270.77378781]
[1680643587806,0.06549152,21.013,21.001,127.97378781]
[1680643588009,0.06549152,21.013,20.999,0.06753091]
[1680643588608,0.06549152,21.013,20.999,128.04131872]
[1680643588808,0.06549152,21.013,21.0,127.97378781]
[1680643589007,0.06549152,21.013,21.001,127.97378781]
[1680643589207,0.06549152,21.013,21.002,127.97378781]
[1680643589408,0.06549152,21.013,21.003,127.97378781]
[1680643589609,0.06549152,21.013,21.004,127.97378781]
[1680643589908,0.06549152,21.013,21.005,127.97378781]
[1680643590208,0.06549152,21.013,20.999,0.06753091]
[1680643629442,142.8,21.012,20.982,44.6011]
[1680643629741,142.8,21.01,20.983,128.05223763]
[1680643629940,1.74995404,21.009,20.983,128.05223763]
[1680643630239,0.06005376,21.003,20.989,0.06593532]
[1680643639854,1.81075248,21.003,20.989,0.06593532]
[1680643647959,16.11727149,21.003,20.989,0.06593532]
[1680643648159,1.75069872,21.002,20.989,0.06593532]
[1680643648354,1.75069872,21.001,20.989,0.06593532]
[1680643648559,1.75069872,21.0,20.989,0.06593532]
[1680643648762,1.75069872,20.999,20.989,0.06593532]
[1680643658863,46.1475,21.0,20.989,0.06593532]
[1680643664269,0.06005376,21.003,20.989,0.06593532]
[1680643666371,0.06005376,21.003,20.991,142.8]
[1680643666569,0.06005376,21.003,20.992,45.2905]
[1680643676479,0.06005376,21.003,20.989,0.06593532]
[1680643688893,14.65428447,21.003,20.989,0.06593532]
[1680643701501,1.75087507,21.002,20.989,0.06593532]
[1680643701994,1.75087507,21.002,20.973,128.06438508]
[1680643703100,0.07061336,20.995,20.98,0.06343205]
[1680643707506,23.38068313,20.995,20.98,0.06343205]
[1680643707702,142.8,20.993,20.98,0.06343205]
[1680643708203,142.8,20.993,20.976,128.06438508]
[1680643708402,142.8,20.993,20.969,14.34883778]
[1680643708597,1.75173096,20.992,20.97,128.12064305]
[1680643708905,1.75173096,20.992,20.971,128.12064305]
[1680643709098,1.75173096,20.992,20.962,128.12064305]
[1680643709303,1.75173096,20.992,20.963,142.8]
[1680643709607,0.06102453,20.984,20.964,128.12064305]
[1680643710704,0.06102453,20.984,20.965,128.12064305]
[1680643710906,0.06102453,20.984,20.966,128.12064305]
[1680643711108,0.06102453,20.984,20.962,128.12064305]
[1680643711402,0.06102453,20.984,20.963,128.12064305]
[1680643711607,0.06102453,20.984,20.964,128.12064305]
[1680643711907,0.06102453,20.984,20.965,128.12064305]
[1680643712106,0.06102453,20.984,20.966,128.12064305]
[1680643712305,0.06102453,20.984,20.967,128.12064305]
[1680643712506,0.06102453,20.984,20.968,128.12064305]
[1680643712708,0.06102453,20.984,20.962,128.12064305]
[1680643713401,0.06102453,20.984,20.962,270.92064305]
[1680643713606,0.06102453,20.984,20.963,128.12064305]
[1680643713806,0.06102453,20.984,20.964,128.12064305]
[1680643714009,0.06102453,20.984,20.965,128.12064305]
[1680643714214,0.06102453,20.984,20.966,128.12064305]
[1680643714511,0.06102453,20.984,20.967,128.12064305]
[1680643714711,0.06102453,20.984,20.968,128.12064305]
[1680643714912,0.06102453,20.984,20.963,128.12064305]
[1680643715210,0.06102453,20.984,20.964,128.12064305]
[1680643715409,0.06102453,20.984,20.965,128.12064305]
[1680643715610,0.06102453,20.984,20.966,128.12064305]
[1680643715811,0.06102453,20.984,20.967,128.12064305]
[1680643716012,0.06102453,20.984,20.968,128.12064305]
[1680643716212,0.06102453,20.984,20.962,142.8]
[1680643716414,0.06102453,20.984,20.963,128.1370651]
[1680643718615,14.24471764,20.984,20.963,128.1370651]
[1680643719915,14.24471764,20.984,20.964,142.8]
[1680643720116,14.24471764,20.984,20.965,128.1370651]
[1680643720716,14.24471764,20.984,20.966,128.1370651]
[1680643720911,14.24471764,20.984,20.967,128.1370651]
[1680643721116,14.24471764,20.984,20.962,142.8]
[1680643721319,14.24471764,20.984,20.963,128.13750351]
[1680643723919,14.24471764,20.984,20.964,128.13750351]
[1680643724115,14.24471764,20.984,20.965,128.13750351]
[1680643724417,14.24471764,20.984,20.961,60.18652668]
[1680643724720,14.24471764,20.984,20.962,128.14928639]
[1680643737626,14.24471764,20.984,20.961,60.18652668]
[1680643739730,14.24471764,20.984,20.962,128.16333728]
[1680643764451,1.75250577,20.983,20.961,60.18652668]
[1680643764752,0.06844364,20.979,20.961,60.18652668]
[1680643769453,142.8,20.974,20.961,35.06177306]
[1680643769750,142.8,20.972,20.939,123.78694189]
[1680643769953,0.0622929,20.963,20.94,265.21447011]
[1680643770152,0.0622929,20.963,20.941,136.98991077]
[1680643770344,0.06992247,20.959,20.942,128.22455934]
[1680643770549,0.06874117,20.958,20.943,128.22455934]
[1680643770850,0.06314772,20.958,20.944,128.22455934]
[1680643771053,0.06314772,20.958,20.941,271.02455934]
[1680643771250,0.06314772,20.958,20.942,128.22455934]
[1680643771852,0.06314772,20.958,20.942,271.02455934]
[1680643772046,0.06314772,20.958,20.944,142.8]
[1680643772248,0.06314772,20.958,20.945,128.22455934]
[1680643772448,0.06314772,20.958,20.94,128.22455934]
[1680643772645,0.06314772,20.958,20.941,128.22455934]
[1680643772851,0.06314772,20.958,20.94,128.22455934]
[1680643773049,0.06314772,20.958,20.941,128.22455934]
[1680643773250,0.06314772,20.958,20.942,128.22455934]
[1680643773448,0.06314772,20.958,20.943,128.22455934]
[1680643773650,0.06709071,20.958,20.944,128.22455934]
[1680643773852,0.06761084,20.958,20.945,128.22455934]
[1680643774153,0.06973688,20.959,20.946,128.22455934]
[1680643774354,0.06059945,20.96,20.942,142.8]
[1680643774652,0.06575279,20.958,20.943,316.26495934]
[1680643774853,0.0609427,20.958,20.944,128.22455934]
[1680643778358,1.75355573,20.971,20.958,0.07594209]
[1680643780058,16.07310867,20.971,20.958,0.07594209]
[1680643780260,142.8,20.964,20.958,0.00416224]
[1680643780463,1.75355573,20.963,20.958,0.00416224]
[1680643782461,48.3873,20.964,20.958,0.00416224]
[1680643783557,142.8,20.971,20.958,0.00416224]
[1680643783757,142.8,20.969,20.958,0.00416224]
[1680643783957,1.75385973,20.968,20.958,0.00416224]
[1680643794064,37.86010159,20.972,20.958,0.00416224]
[1680643794065,14.27517371,20.972,20.958,0.00416224]
[1680643794264,0.07148538,20.972,20.958,0.00416224]
[1680643803275,0.07148538,20.972,20.957,0.07014756]
[1680643836999,0.07148538,20.972,20.957,128.3241625]
[1680643837203,0.07148538,20.972,20.958,128.25401494]
[1680643837400,0.07148538,20.972,20.957,0.07014756]
[1680643874925,0.07148538,20.972,20.957,128.30208732]
[1680643877128,0.07148538,20.972,20.958,128.23193976]
[1680643877329,0.07148538,20.972,20.957,0.07014756]
[1680643877732,0.07148538,20.972,20.957,128.30208732]
[1680643877932,0.07148538,20.972,20.958,142.8]
[1680643878228,0.07148538,20.972,20.959,128.23193976]
[1680643879025,0.07148538,20.972,20.96,47.3122]
[1680643879225,0.07148538,20.972,20.961,128.23193976]
[1680643880939,14.16793892,20.987,20.961,271.03193976]
[1680643881143,59.15430151,20.986,20.963,142.8]
[1680643881339,59.15430151,20.986,20.96,47.3122]
[1680643881340,11.32590151,20.985,20.965,142.8]
[1680643881637,11.32590151,20.984,20.966,128.23193976]
[1680643881831,0.06742671,20.982,20.968,0.07098181]
[1680643882436,0.06742671,20.982,20.968,142.87098181]
[1680643882631,0.06742671,20.982,20.969,43.8542]
[1680643883539,0.06742671,20.982,20.969,186.6542]
[1680643884139,0.06742671,20.982,20.971,142.8]
[1680643884439,0.06742671,20.982,20.969,43.8542]
[1680643884440,1.75216073,20.99,20.973,142.8]
[1680643885241,0.06657328,20.989,20.974,0.06109533]
[1680643905859,585.0,21.019,20.974,0.06109533]
[1680643906063,48.2366,21.002,20.974,142.8]
[1680643906262,1.75101223,21.001,20.976,142.8]
[1680643906761,1.75101223,21.001,20.975,45.774]
[1680643906762,1.75101223,21.001,20.975,188.574]
[1680643906962,0.0638322,20.995,20.981,0.0643214]
[1680643918875,0.0638322,20.995,20.981,14.54462099]
[1680643919081,0.0638322,20.995,20.981,0.0643214]
[1680643922170,0.0638322,20.995,20.981,23.57820311]
[1680643922373,0.0638322,20.995,20.981,0.0643214]
[1680643926981,0.0638322,20.995,20.982,142.8]
[1680643927182,0.0638322,20.995,20.983,47.1973]
[1680643931784,0.0638322,20.995,20.983,71.59476827]
[1680643939088,0.0638322,20.995,20.983,214.39476827]
[1680643943889,0.0638322,20.995,20.984,10.0]
[1680643947196,0.0638322,20.995,20.988,100.0]
[1680643947491,0.0638322,20.995,20.989,10.0]
[1680643947693,0.06649225,20.999,20.989,10.0]
[1680643950896,0.06649225,20.999,20.987,0.06602885]
[1680643951895,0.06649225,20.999,20.987,110.06602885]
[1680643952095,0.06649225,20.999,20.987,100.06602885]
[1680643954397,0.06649225,20.999,20.988,10.0]
[1680643956095,0.06649225,20.999,20.987,0.06602885]
[1680643960396,0.06649225,20.999,20.987,10.06602885]
[1680643960998,0.06649225,20.999,20.987,0.06602885]
[1680643969813,0.06649225,20.999,20.987,23.37580566]
[1680643970015,0.06649225,20.999,20.988,10.0]
[1680643974219,0.06649225,20.999,20.987,0.06602885]
[1680643974419,0.06649225,20.999,20.987,24.29505105]
[1680643974715,0.06649225,20.999,20.988,10.0]
[1680643980431,0.06649225,20.999,20.987,10.06602885]
[1680643981024,0.06649225,20.999,20.987,0.06602885]
[1680643981215,0.06649225,20.999,20.987,128.13661443]
[1680643981419,0.06649225,20.999,20.987,0.06602885]
[1680643981619,0.06649225,20.999,20.987,128.13665729]
[1680643981823,0.06649225,20.999,20.988,10.0]
[1680643982524,0.06649225,20.999,20.987,10.06602885]
[1680643983724,0.06649225,20.999,20.988,128.06977337]
[1680643983923,0.06649225,20.999,20.989,10.0]
[1680643985525,0.06649225,20.999,20.987,10.06602885]
[1680643985725,0.06649225,20.999,20.988,128.06951773]
[1680643986126,0.06649225,20.999,20.989,10.0]
[1680643987025,0.06649225,20.999,20.987,10.06602885]
[1680643987227,0.06649225,20.999,20.988,128.05595808]
[1680643987524,0.06649225,20.999,20.989,10.0]
[1680643989426,0.06649225,20.999,20.987,10.06602885]
[1680643989625,0.06649225,20.999,20.989,10.0]
[1680643990320,0.06649225,20.999,20.987,10.06602885]
[1680643990524,0.06649225,20.999,20.988,128.05815382]
[1680643990726,0.06649225,20.999,20.989,10.0]
[1680643992328,0.06649225,20.999,20.987,10.06602885]
[1680643992525,0.06649225,20.999,20.988,128.05919862]
[1680643992728,0.06649225,20.999,20.989,128.05919862]
[1680643992931,0.06649225,20.999,20.987,128.12522747]
[1680643993129,0.06649225,20.999,20.988,128.05963548]
[1680643993425,0.06649225,20.999,20.989,138.05963548]
[1680643993631,0.06649225,20.999,20.99,10.0]
[1680643993929,0.06649225,20.999,20.987,10.06602885]
[1680643994129,0.06649225,20.999,20.988,128.0569408]
[1680643994332,0.06649225,20.999,20.989,10.0]
[1680643995030,0.06649225,20.999,20.987,0.06602885]
[1680643996034,0.06649225,20.999,20.987,128.12420175]
[1680643996431,0.06649225,20.999,20.987,0.06602885]
[1680643997231,0.06649225,20.999,20.987,128.12420175]
[1680643997431,0.06649225,20.999,20.987,0.06602885]
[1680644032549,0.06649225,20.999,20.987,23.84578621]
[1680644032849,0.06649225,20.999,20.989,10.0]
[1680644033043,0.06649225,20.999,20.99,128.0581729]
[1680644033247,0.06649225,20.999,20.987,0.06602885]
[1680644033950,0.06649225,20.999,20.987,128.13005255]
[1680644034147,0.06649225,20.999,20.988,128.0640237]
[1680644034344,0.06649225,20.999,20.989,138.0640237]
[1680644034548,0.06649225,20.999,20.99,138.0640237]
[1680644034849,0.06649225,20.999,20.99,10.0]
[1680644035050,0.06649225,20.999,20.987,0.06602885]
[1680644035848,0.06649225,20.999,20.987,128.12998932]
[1680644036244,0.06649225,20.999,20.988,128.06396047]
[1680644036452,0.06649225,20.999,20.989,138.06396047]
[1680644036751,0.06649225,20.999,20.99,128.06396047]
[1680644037050,0.06649225,20.999,20.991,10.0]
[1680644037453,0.06649225,20.999,20.987,0.06602885]
[1680644038351,0.06649225,20.999,20.987,128.12854445]
[1680644038853,0.06649225,20.999,20.989,10.0]
[1680644039053,0.06649225,20.999,20.99,128.0625156]
[1680644039252,0.06649225,20.999,20.991,10.0]
[1680644039654,0.06649225,20.999,20.987,0.06602885]
[1680644040653,0.06649225,20.999,20.987,128.12905984]
[1680644041054,0.06649225,20.999,20.988,138.06303099]
[1680644041256,0.06649225,20.999,20.989,138.06303099]
[1680644041455,0.06649225,20.999,20.99,138.06303099]
[1680644041754,0.06649225,20.999,20.991,138.06303099]
[1680644041958,0.06649225,20.999,20.991,10.0]
[1680644042254,0.06649225,20.999,20.987,0.06602885]
[1680644043049,0.06649225,20.999,20.987,128.12926861]
[1680644043456,0.06649225,20.999,20.988,128.06323976]
[1680644043755,0.06649225,20.999,20.989,10.0]
[1680644043956,0.06649225,20.999,20.99,128.06323976]
[1680644044357,0.06649225,20.999,20.991,138.06323976]
[1680644044554,0.06649225,20.999,20.987,0.06602885]
[1680644045550,0.06649225,20.999,20.987,128.1282658]
[1680644045755,0.06649225,20.999,20.988,128.06223695]
[1680644045951,0.06649225,20.999,20.989,10.0]
[1680644046155,0.06649225,20.999,20.99,128.06223695]
[1680644046754,0.06649225,20.999,20.991,128.06223695]
[1680644046956,0.06649225,20.999,20.987,0.06602885]
[1680644048073,0.06649225,20.999,20.987,128.12738523]
[1680644048256,0.06649225,20.999,20.988,128.06135638]
[1680644048452,0.06649225,20.999,20.987,0.06602885]
[1680644050559,0.06649225,20.999,20.987,23.3807526]
[1680644050760,0.06649225,20.999,20.989,10.0]
[1680644050962,0.06649225,20.999,20.99,128.06135638]
[1680644051160,0.06649225,20.999,20.991,128.06135638]
[1680644051359,0.06649225,20.999,20.987,0.06602885]
[1680644051561,0.06649225,20.999,20.987,10.06602885]
[1680644051761,0.06649225,20.999,20.988,128.06171974]
[1680644051961,0.06649225,20.999,20.989,10.0]
[1680644052266,0.06649225,20.999,20.99,128.06171974]
[1680644052654,0.06649225,20.999,20.987,0.06602885]
[1680644053660,0.06649225,20.999,20.987,128.14006787]
[1680644053862,0.06649225,20.999,20.988,128.07403902]
[1680644054061,0.06649225,20.999,20.987,0.06602885]
[1680644054862,0.06649225,20.999,20.987,128.14006787]
[1680644055061,0.06649225,20.999,20.988,128.07403902]
[1680644055264,0.06649225,20.999,20.989,128.07403902]
[1680644055562,0.06649225,20.999,20.99,128.07403902]
[1680644055764,0.06649225,20.999,20.991,128.07403902]
[1680644056063,0.06649225,20.999,20.987,0.06602885]
[1680644057161,0.06649225,20.999,20.987,128.12739836]
[1680644057363,0.06649225,20.999,20.988,128.06136951]
[1680644057564,0.06649225,20.999,20.989,128.06136951]
[1680644057763,0.06649225,20.999,20.987,0.06602885]
[1680644058669,0.06649225,20.999,20.987,128.14620581]
[1680644058860,0.06649225,20.999,20.988,128.08017696]
[1680644059065,0.06649225,20.999,20.989,128.08017696]
[1680644059266,0.06649225,20.999,20.987,0.06602885]
[1680644067882,11.39369782,20.999,20.987,0.06602885]
[1680644068082,11.32720557,20.998,20.987,0.06602885]
[1680644068279,9.57603211,20.997,20.987,0.06602885]
[1680644068480,0.06649225,20.999,20.987,0.06602885]
[1680644068880,11.39369357,20.999,20.987,0.06602885]
[1680644069081,11.32720132,20.998,20.987,0.06602885]
[1680644069278,9.57603211,20.997,20.987,0.06602885]
[1680644069481,9.57603211,20.996,20.987,0.06602885]
[1680644069783,0.06649225,20.999,20.987,0.06602885]
[1680644070184,11.38947557,20.999,20.987,0.06602885]
[1680644070385,11.32298332,20.998,20.987,0.06602885]
[1680644070584,9.57181057,20.997,20.987,0.06602885]
[1680644070785,9.57181057,20.996,20.987,0.06602885]
[1680644070983,0.06649225,20.999,20.987,0.06602885]
[1680644071385,11.38950668,20.999,20.987,0.06602885]
[1680644071586,11.32301443,20.998,20.987,0.06602885]
[1680644071787,9.57184065,20.997,20.987,0.06602885]
[1680644071985,0.06649225,20.999,20.987,0.06602885]
[1680644072382,11.38957135,20.999,20.987,0.06602885]
[1680644072578,11.3230791,20.998,20.987,0.06602885]
[1680644072782,9.57182331,20.997,20.987,0.06602885]
[1680644072988,9.57182331,20.996,20.987,0.06602885]
[1680644073288,0.06649225,20.999,20.987,0.06602885]
[1680644073790,11.38907949,20.999,20.987,0.06602885]
[1680644074091,11.32258724,20.998,20.987,0.06602885]
[1680644074285,9.5713312,20.997,20.987,0.06602885]
[1680644074489,0.06649225,20.999,20.987,0.06602885]
[1680644074981,11.38590501,20.999,20.987,0.06602885]
[1680644075185,11.31941276,20.998,20.987,0.06602885]
[1680644075386,9.56823836,20.997,20.987,0.06602885]
[1680644075586,0.06649225,20.999,20.987,0.06602885]
[1680644076085,11.38479633,20.999,20.987,0.06602885]
[1680644076285,11.31830408,20.998,20.987,0.06602885]
[1680644076484,9.56712979,20.997,20.987,0.06602885]
[1680644076687,0.06649225,20.999,20.987,0.06602885]
[1680644077188,11.3848605,20.999,20.987,0.06602885]
[1680644077386,11.31836825,20.998,20.987,0.06602885]
[1680644077587,0.06649225,20.999,20.987,0.06602885]
[1680644080187,0.06649225,20.999,20.987,128.15197921]
[1680644080390,0.06649225,20.999,20.987,0.06602885]
[1680644082685,0.06649225,20.999,20.987,128.14333244]
[1680644082890,0.06649225,20.999,20.987,0.06602885]
[1680644084494,0.06649225,20.999,20.987,128.14343519]
[1680644084792,0.06649225,20.999,20.987,0.06602885]
[1680644086496,9.63363404,20.999,20.987,0.06602885]
[1680644086698,11.3183623,20.998,20.987,0.06602885]
[1680644086995,11.3183623,20.997,20.987,0.06602885]
[1680644087195,11.3183623,20.996,20.987,0.06602885]
[1680644087397,5.0,20.998,20.987,0.06602885]
[1680644087600,11.30255484,20.997,20.987,0.06602885]
[1680644087799,5.0,20.998,20.987,0.06602885]
[1680644087998,5.0,20.996,20.987,0.06602885]
[1680644088402,46.9207,20.995,20.987,0.06602885]
[1680644088598,5.0,20.994,20.987,0.06602885]
[1680644098608,5.0,20.994,20.979,14.56382699]
[1680644098807,5.0,20.994,20.973,45.3811]
[1680644099009,5.0,20.994,20.975,5.0]
[1680644099207,5.0,20.994,20.976,128.1131762]
[1680644099403,5.0,20.994,20.977,5.0]
[1680644099713,0.06682249,20.993,20.979,5.0]
[1680644100212,0.06682249,20.993,20.978,0.06564369]
[1680644104510,1.81870865,20.993,20.978,0.06564369]
[1680644105114,109.54056253,20.992,20.978,0.06564369]
[1680644105314,1.75188616,20.991,20.978,0.06564369]
[1680644105515,5.0,20.99,20.978,0.06564369]
[1680644105813,1.75188616,20.989,20.978,0.06564369]
[1680644106309,5.0,20.987,20.978,0.06564369]
[1680644108513,46.0548,20.988,20.978,0.06564369]
[1680644115724,188.8548,20.988,20.978,0.06564369]
[1680644116426,5.0,20.987,20.968,14.05123686]
[1680644116621,5.0,20.987,20.964,5.0]
[1680644116827,5.0,20.987,20.965,128.15551936]
[1680644117028,5.0,20.987,20.966,5.0]
[1680644117231,0.06521884,20.984,20.969,0.06857766]
[1680644120530,100.0,20.982,20.969,0.06857766]
[1680644120732,46.357,20.981,20.969,0.06857766]
[1680644121031,5.0,20.98,20.969,0.06857766]
[1680644121234,46.357,20.981,20.969,0.06857766]
[1680644122826,189.157,20.981,20.969,0.06857766]
[1680644125733,46.357,20.981,20.969,0.06857766]
[1680644129435,189.157,20.981,20.969,0.06857766]
[1680644129833,1.75270699,20.98,20.969,0.06857766]
[1680644130030,5.0,20.979,20.969,0.06857766]
[1680644134338,1.7530562,20.978,20.969,0.06857766]
[1680644134740,5.0,20.979,20.969,0.06857766]
[1680644136538,5.0,20.979,20.949,142.8]
[1680644136539,5.0,20.979,20.941,142.8]
[1680644136743,5.0,20.979,20.938,100.0]
[1680644136744,142.8,20.972,20.938,100.0]